[Event "1st Sivas Buruciye Open 2019"]
[Site "Sivas"]
[Date "2019.08.23"]
[Round "8"]
[White "Yarashov, Azat"]
[Black "Annaberdiyev, Babageldi"]
[Result "1-0"]
[ECO "B23"]
[WhiteElo "2156"]
[BlackElo "2242"]
[Annotator "ChessBase"]
[PlyCount "97"]
[EventDate "2019.08.19"]
[EventType "swiss"]
[EventCountry "TUR"]
[SourceTitle "playchess.com"]
[Source "ChessBase"]
[SourceQuality "1"]
[TimeControl "5400+30"]

1. e4 c5 {[%emt 0:00:30]} 2. Nc3 {[%emt 0:05:00]} Nc6 {[%emt 0:01:30]} 3. d3 {[%emt 0:00:30]} a6 {[%emt 0:00:30]} 4. g3 {[%emt 0:00:30]} b5 {[%emt 0:00:00]} 5. Bg2 {[%emt 0:00:30]} Bb7 {[%emt 0:00:00]} 6. Be3 {[%emt 0:00:30]} e6 {[%emt 0:00:30]} 7. Nge2 {[%emt 0:01:30]} Nf6 {[%emt 0:00:30]} 8. h3 {[%emt 0:00:30]} Qc7 {[%emt 0:02:30]} 9. O-O {[%emt 0:08:30]} Be7 {[%emt 0:06:30]} 10. a3 {[%emt 0:03:30]} Rd8 {[%emt 0:01:30]} 11. g4 {[%emt 0:09:30]} h6 {[%emt 0:00:30]} 12. Ng3 {[%emt 0:01:30]} d5 {[%emt 0:10:30]} 13. exd5 {[%emt 0:05:30]} exd5 {[%emt 0:00:00]} 14. Nce2 {[%emt 0:01:30]} Bc8 {[%emt 0:03:00]} 15. d4 {[%emt 0:00:30]} h5 {[%emt 0:06:30]} 16. g5 {[%emt 0:06:30]} Ne4 {[%emt 0:00:00]} 17. Nxe4 {[%emt 0:03:30]} dxe4 {[%emt 0:00:00]} 18. d5 {[%emt 0:03:30]} Ne5 {[%emt 0:01:30]} 19. Ng3 {[%emt 0:09:30]} Bxh3 {[%emt 0:06:30]} 20. Bxh3 {[%emt 0:07:30]} Nf3+ {[%emt 0:00:00]} 21. Kg2 {[%emt 0:00:30]} h4 {[%emt 0:03:00]} 22. Nxe4 {[%emt 0:01:30]} Qh2+ {[%emt 0:00:30]} 23. Kxf3 {[%emt 0:00:30]} Qxh3+ {[%emt 0:00:30]} 24. Ke2 {[%emt 0:00:00]} Qf5 {[%emt 0:00:00]} 25. f3 {[%emt 0:08:00]} Rxd5 {[%emt 0:00:00]} 26. Qe1 {[%emt 0:00:00]} h3 {[%emt 0:00:30]} 27. Rd1 {[%emt 0:00:00]} h2 {[%emt 0:00:30]} 28. Rxd5 {[%emt 0:01:30]} Qxd5 {[%emt 0:00:30]} 29. Rh1 {[%emt 0:00:30]} Qe5 {[%emt 0:00:00]} 30. c3 {[%emt 0:00:30]} Qd5 {[%emt 0:10:00]} 31. Qd2 {[%emt 0:02:33]} Qe6 {[%emt 0:04:30]} 32. Kf1 {[%emt 0:06:05]} f5 {[%emt 0:01:30]} 33. gxf6 {[%emt 0:01:24]} gxf6 {[%emt 0:00:30]} 34. Rxh2 {[%emt 0:01:07]} Rxh2 {[%emt 0:00:30]} 35. Qxh2 {[%emt 0:00:30]} f5 {[%emt 0:00:00]} 36. Qb8+ {[%emt 0:00:33]} Bd8 {[%emt 0:03:00]} 37. Bg5 {[%emt 0:03:55]} fxe4 {[%emt 0:01:30]} 38. Qxd8+ {[%emt 0:00:30]} Kf7 {[%emt 0:00:30]} 39. Qe7+ {[%emt 0:00:30]} Qxe7 {[%emt 0:00:30]} 40. Bxe7 {[%emt 0:00:30]} Kxe7 {[%emt 0:00:30]} 41. fxe4 {[%emt 0:00:30]} Kf6 {[%emt 0:00:30]} 42. Ke2 {[%emt 0:00:30]} a5 {[%emt 0:00:30]} 43. Ke3 {[%emt 0:00:20]} Ke5 {[%emt 0:01:30]} 44. Kf3 {[%emt 0:00:47]} b4 {[%emt 0:01:30]} 45. Ke3 {[%emt 0:01:34]} b3 {[%emt 0:00:30]} 46. Kf3 {[%emt 0:01:20]} a4 {[%emt 0:02:30]} 47. Ke3 {[%emt 0:00:05]} Kf6 {[%emt 0:00:30]} 48. Kf4 {[%emt 0:00:36]} Ke6 {[%emt 0:00:00]} 49. c4 {[%emt 0:00:02]} 1-0

[Event "1st Sivas Buruciye Open 2019"]
[Site "Sivas"]
[Date "2019.08.23"]
[Round "8"]
[White "Khvadagiani, Nika"]
[Black "Subasi, Zeki"]
[Result "1-0"]
[ECO "B22"]
[WhiteElo "1880"]
[BlackElo "1689"]
[Annotator "NA"]
[PlyCount "81"]
[EventDate "2019.08.19"]
[EventType "swiss"]
[EventCountry "TUR"]
[SourceTitle "playchess.com"]
[Source "ChessBase"]
[SourceQuality "1"]
[TimeControl "5400+30"]

1. e4 c5 2. Nf3 d6 3. c3 Nc6 4. d4 cxd4 5. cxd4 {[%emt 0:01:30]} e6 {[%emt 0:08:30]} 6. Nc3 {[%emt 0:00:30]} Be7 {[%emt 0:00:30]} 7. Bd3 {[%emt 0:00:30]} Nf6 {[%emt 0:01:30]} 8. O-O {[%emt 0:00:30]} O-O {[%emt 0:00:00]} 9. Qe2 {[%emt 0:02:30]} a6 {[%emt 0:01:00]} 10. e5 {[%emt 0:07:30]} Ne8 {[%emt 0:10:30]} 11. Be3 {[%emt 0:12:30]} d5 {[%emt 0:04:30]} 12. Nd2 {[%emt 0:00:30]} Qb6 {[%emt 0:01:30]} 13. Nb3 {[%emt 0:12:30]} f5 {[%emt 0:02:30]} 14. f4 {[%emt 0:00:30]} Bd7 {[%emt 0:05:30]} 15. g4 {[%emt 0:03:30]} g6 {[%emt 0:01:30]} 16. Rf3 {[%emt 0:04:30]} a5 {[%emt 0:02:30]} 17. gxf5 {[%emt 0:00:30]} gxf5 {[%emt 0:00:30]} 18. Kh1 {[%emt 0:00:30]} Ng7 {[%emt 0:02:30]} 19. Rg1 {[%emt 0:00:30]} Be8 {[%emt 0:02:30]} 20. Rfg3 {[%emt 0:01:30]} Bg6 {[%emt 0:00:30]} 21. Qg2 {[%emt 0:04:30]} Rfe8 {[%emt 0:14:30]} 22. Rxg6 {[%emt 0:01:30]} hxg6 {[%emt 0:00:30]} 23. Qxg6 {[%emt 0:00:00]} Bf8 {[%emt 0:00:30]} 24. Bxf5 {[%emt 0:00:00]} Nb4 {[%emt 0:12:30]} 25. Qh7+ {[%emt 0:02:30]} Kf7 {[%emt 0:00:30]} 26. Bg6+ {[%emt 0:00:00]} Ke7 {[%emt 0:00:30]} 27. Bxe8 {[%emt 0:09:00]} Rxe8 {[%emt 0:00:30]} 28. Rxg7+ {[%emt 0:00:30]} Bxg7 {[%emt 0:00:30]} 29. Qxg7+ {[%emt 0:00:00]} Kd8 {[%emt 0:00:00]} 30. Nc5 {[%emt 0:00:00]} Re7 {[%emt 0:04:00]} 31. Qf8+ {[%emt 0:02:30]} Re8 {[%emt 0:00:30]} 32. Qf6+ {[%emt 0:06:30]} Kc8 {[%emt 0:02:30]} 33. Qf7 {[%emt 0:01:30]} Qc6 {[%emt 0:00:30]} 34. Nxb7 {[%emt 0:00:30]} Kb8 {[%emt 0:05:16]} 35. Nxa5 {[%emt 0:00:30]} Qc8 {[%emt 0:00:36]} 36. Nb5 {[%emt 0:00:30]} Nc6 {[%emt 0:00:47]} 37. Nd6 {[%emt 0:00:00]} Qa6 {[%emt 0:02:25]} 38. Qxe8+ {[%emt 0:00:00]} Ka7 {[%emt 0:00:00]} 39. Nxc6+ {[%emt 0:00:30]} Kb6 {[%emt 0:00:53]} 40. Qb8+ {[%emt 0:00:00]} Kxc6 {[%emt 0:00:23]} 41. Qc8+ {[%emt 0:00:00]} 1-0

[Event "1st Sivas Buruciye Open 2019"]
[Site "Sivas"]
[Date "2019.08.23"]
[Round "8"]
[White "Sabahi, Ali Can"]
[Black "Can, Ilhan"]
[Result "1-0"]
[ECO "B07"]
[WhiteElo "1825"]
[BlackElo "1683"]
[Annotator "NA"]
[PlyCount "121"]
[EventDate "2019.08.19"]
[EventType "swiss"]
[EventCountry "TUR"]
[SourceTitle "playchess.com"]
[Source "ChessBase"]
[SourceQuality "1"]
[TimeControl "5400+30"]

1. d4 {[%emt 0:04:30]} d6 {[%emt 0:05:30]} 2. e4 {[%emt 0:00:30]} Nf6 {[%emt 0:00:30]} 3. Nc3 {[%emt 0:00:30]} g6 {[%emt 0:00:30]} 4. Be3 {[%emt 0:00:30]} Bg7 {[%emt 0:00:30]} 5. f3 {[%emt 0:00:30]} c6 {[%emt 0:00:30]} 6. Qd2 {[%emt 0:00:00]} h6 {[%emt 0:00:00]} 7. Nge2 {[%emt 0:00:00]} Nbd7 {[%emt 0:00:00]} 8. h3 {[%emt 0:00:00]} Qa5 {[%emt 0:02:30]} 9. Nc1 {[%emt 0:01:00]} h5 {[%emt 0:03:30]} 10. Bd3 {[%emt 0:02:30]} h4 {[%emt 0:00:30]} 11. Nb3 {[%emt 0:00:00]} Qc7 {[%emt 0:00:30]} 12. Bg5 {[%emt 0:01:00]} a6 {[%emt 0:03:30]} 13. Qf2 {[%emt 0:14:30]} c5 {[%emt 0:04:30]} 14. dxc5 {[%emt 0:01:30]} dxc5 {[%emt 0:00:00]} 15. Nd2 {[%emt 0:02:30]} Qg3 {[%emt 0:01:00]} 16. Qxg3 {[%emt 0:01:30]} hxg3 {[%emt 0:00:30]} 17. O-O-O {[%emt 0:00:30]} Bh6 {[%emt 0:04:30]} 18. Bxh6 {[%emt 0:01:30]} Rxh6 {[%emt 0:00:30]} 19. Nf1 {[%emt 0:00:30]} Nh5 {[%emt 0:00:30]} 20. Ne2 {[%emt 0:00:30]} c4 {[%emt 0:00:30]} 21. Bxc4 {[%emt 0:00:30]} Ne5 {[%emt 0:00:30]} 22. Bb3 {[%emt 0:00:30]} Nxf3 {[%emt 0:00:30]} 23. Nfxg3 {[%emt 0:00:30]} Nxg3 {[%emt 0:00:30]} 24. Nxg3 {[%emt 0:00:30]} Ne5 {[%emt 0:00:30]} 25. Rhf1 {[%emt 0:00:30]} f6 {[%emt 0:00:30]} 26. Bd5 {[%emt 0:00:30]} g5 {[%emt 0:00:30]} 27. Rd4 {[%emt 0:00:30]} a5 {[%emt 0:08:30]} 28. Nf5 {[%emt 0:12:30]} Rh7 {[%emt 0:02:30]} 29. Rfd1 {[%emt 0:03:30]} Kf8 {[%emt 0:02:30]} 30. Bb3 {[%emt 0:06:30]} Bxf5 {[%emt 0:00:30]} 31. Rd8+ {[%emt 0:01:30]} Rxd8 {[%emt 0:00:30]} 32. Rxd8+ {[%emt 0:00:30]} Kg7 {[%emt 0:00:00]} 33. Rg8+ {[%emt 0:00:00]} Kh6 {[%emt 0:00:00]} 34. exf5 {[%emt 0:00:00]} g4 {[%emt 0:01:30]} 35. hxg4 {[%emt 0:04:30]} Rg7 {[%emt 0:00:00]} 36. Rxg7 {[%emt 0:00:30]} Kxg7 {[%emt 0:00:00]} 37. Bd5 {[%emt 0:00:30]} b6 {[%emt 0:01:30]} 38. Bf3 {[%emt 0:00:00]} Kh6 {[%emt 0:00:00]} 39. Kd2 {[%emt 0:03:00]} Kg5 {[%emt 0:00:00]} 40. Ke3 {[%emt 0:05:30]} Nc4+ {[%emt 0:02:30]} 41. Kd4 {[%emt 0:00:30]} Nxb2 {[%emt 0:00:30]} 42. Kd5 {[%emt 0:00:30]} Na4 {[%emt 0:01:30]} 43. Kc6 {[%emt 0:00:00]} Kf4 {[%emt 0:02:30]} 44. Kb5 {[%emt 0:00:00]} Nc3+ {[%emt 0:02:30]} 45. Kxb6 {[%emt 0:00:30]} a4 {[%emt 0:00:00]} 46. Ka5 {[%emt 0:10:30]} Ke3 {[%emt 0:01:00]} 47. a3 {[%emt 0:00:30]} Kd2 {[%emt 0:00:30]} 48. Bc6 {[%emt 0:00:30]} Kxc2 {[%emt 0:00:30]} 49. Bxa4+ {[%emt 0:01:30]} Kb2 {[%emt 0:00:30]} 50. Kb4 {[%emt 0:00:30]} Nd5+ {[%emt 0:00:30]} 51. Kc5 {[%emt 0:00:30]} Ne3 {[%emt 0:00:30]} 52. Bc6 {[%emt 0:00:00]} Kxa3 {[%emt 0:00:30]} 53. Bf3 {[%emt 0:00:00]} Kb3 {[%emt 0:03:30]} 54. Kd4 {[%emt 0:00:30]} Nf1 {[%emt 0:00:30]} 55. Kd5 {[%emt 0:00:00]} Kc3 {[%emt 0:00:30]} 56. Ke6 {[%emt 0:00:00]} Kd4 {[%emt 0:00:00]} 57. Kxe7 {[%emt 0:00:00]} Ke5 {[%emt 0:00:00]} 58. g5 {[%emt 0:00:00]} fxg5 {[%emt 0:00:30]} 59. f6 {[%emt 0:00:30]} Ng3 {[%emt 0:00:30]} 60. f7 {[%emt 0:00:30]} Nf5+ {[%emt 0:00:00]} 61. Kd7 {[%emt 0:00:30]} 1-0

[Event "1st Sivas Buruciye Open 2019"]
[Site "Sivas"]
[Date "2019.08.23"]
[Round "8"]
[White "Genc, Ugur Can"]
[Black "Taze, Bulent"]
[Result "1-0"]
[ECO "C10"]
[WhiteElo "1661"]
[BlackElo "1743"]
[Annotator "NA"]
[PlyCount "87"]
[EventDate "2019.08.19"]
[EventType "swiss"]
[EventCountry "TUR"]
[SourceTitle "playchess.com"]
[Source "ChessBase"]
[SourceQuality "1"]
[TimeControl "5400+30"]

1. e4 e6 2. d4 d5 3. Nd2 dxe4 4. Nxe4 Nd7 5. Be3 Ngf6 6. Bd3 Nxe4 7. Bxe4 {[%emt 0:03:30]} Nf6 {[%emt 0:02:30]} 8. Bf3 {[%emt 0:06:30]} Be7 {[%emt 0:01:30]} 9. Ne2 {[%emt 0:00:30]} O-O {[%emt 0:01:30]} 10. O-O {[%emt 0:00:30]} Rb8 {[%emt 0:01:30]} 11. c4 {[%emt 0:03:30]} b6 {[%emt 0:00:30]} 12. Nc3 {[%emt 0:00:30]} Bb7 {[%emt 0:01:30]} 13. Bxb7 {[%emt 0:01:30]} Rxb7 {[%emt 0:00:30]} 14. Qf3 {[%emt 0:01:30]} Rb8 {[%emt 0:00:30]} 15. Rfd1 {[%emt 0:01:30]} Qc8 {[%emt 0:00:30]} 16. Rac1 {[%emt 0:08:30]} Qb7 {[%emt 0:03:30]} 17. Qe2 {[%emt 0:06:30]} c6 {[%emt 0:03:30]} 18. f3 {[%emt 0:04:30]} Rfd8 {[%emt 0:00:30]} 19. b3 {[%emt 0:07:30]} Rbc8 {[%emt 0:00:30]} 20. g4 {[%emt 0:01:30]} h6 {[%emt 0:04:30]} 21. h4 {[%emt 0:02:30]} Nh7 {[%emt 0:01:30]} 22. Qf2 {[%emt 0:04:30]} Qc7 {[%emt 0:03:30]} 23. f4 {[%emt 0:01:30]} g6 {[%emt 0:13:30]} 24. f5 {[%emt 0:11:30]} g5 {[%emt 0:07:30]} 25. Ne4 {[%emt 0:06:30]} exf5 {[%emt 0:01:30]} 26. gxf5 {[%emt 0:04:30]} f6 {[%emt 0:01:30]} 27. Qf3 {[%emt 0:00:30]} Bf8 {[%emt 0:04:30]} 28. Kg2 {[%emt 0:03:30]} Qf7 {[%emt 0:08:30]} 29. Rh1 {[%emt 0:01:30]} Bg7 {[%emt 0:04:30]} 30. Rcg1 {[%emt 0:01:33]} Qe7 {[%emt 0:02:30]} 31. Kf2 {[%emt 0:03:53]} Re8 {[%emt 0:03:30]} 32. Ng3 {[%emt 0:00:30]} Nf8 {[%emt 0:01:30]} 33. Re1 {[%emt 0:00:47]} Qf7 {[%emt 0:01:30]} 34. hxg5 {[%emt 0:00:23]} fxg5 {[%emt 0:01:30]} 35. Nh5 {[%emt 0:00:33]} Nd7 {[%emt 0:00:30]} 36. Nxg7 {[%emt 0:03:00]} Qxg7 {[%emt 0:03:30]} 37. Reg1 {[%emt 0:01:28]} Rf8 {[%emt 0:02:30]} 38. Ke2 {[%emt 0:00:25]} Qf6 {[%emt 0:03:24]} 39. Kd2 {[%emt 0:00:57]} Kg7 {[%emt 0:00:30]} 40. Qh5 {[%emt 0:00:30]} Rh8 {[%emt 0:00:30]} 41. Bxg5 {[%emt 0:00:30]} Qxd4+ {[%emt 0:00:30]} 42. Kc2 {[%emt 0:05:26]} Qe4+ {[%emt 0:07:32]} 43. Kc1 {[%emt 0:00:09]} Nc5 {[%emt 0:04:23]} 44. Be7+ {[%emt 0:02:17]} 1-0

[Event "1st Sivas Buruciye Open 2019"]
[Site "Sivas"]
[Date "2019.08.23"]
[Round "8"]
[White "Samli, Ibrahim"]
[Black "Amanmuradow, Atajan"]
[Result "1-0"]
[ECO "B01"]
[WhiteElo "1655"]
[BlackElo "1794"]
[Annotator "NA"]
[PlyCount "49"]
[EventDate "2019.08.19"]
[EventType "swiss"]
[EventCountry "TUR"]
[SourceTitle "playchess.com"]
[Source "ChessBase"]
[SourceQuality "1"]
[TimeControl "5400+30"]

1. e4 d5 2. exd5 Qxd5 3. Nc3 Qa5 4. d4 Nf6 5. Nf3 c6 {[%emt 0:03:30]} 6. Bd2 {[%emt 0:11:00]} Bf5 {[%emt 0:00:30]} 7. Bc4 {[%emt 0:00:30]} e6 {[%emt 0:00:30]} 8. Bb3 {[%emt 0:00:30]} Nbd7 {[%emt 0:00:30]} 9. Qe2 {[%emt 0:01:30]} Qc7 {[%emt 0:02:30]} 10. h3 {[%emt 0:01:30]} h6 {[%emt 0:01:30]} 11. g4 {[%emt 0:01:30]} Bh7 {[%emt 0:01:30]} 12. O-O-O {[%emt 0:04:30]} O-O-O {[%emt 0:08:30]} 13. g5 {[%emt 0:01:30]} Nd5 {[%emt 0:07:30]} 14. Nxd5 {[%emt 0:09:30]} exd5 {[%emt 0:00:30]} 15. gxh6 {[%emt 0:00:30]} gxh6 {[%emt 0:00:30]} 16. Ne5 {[%emt 0:00:30]} Re8 {[%emt 0:00:30]} 17. Qg4 {[%emt 0:00:30]} Rg8 {[%emt 0:00:30]} 18. Nxd7 {[%emt 0:00:30]} Qxd7 {[%emt 0:00:30]} 19. Qxd7+ {[%emt 0:00:30]} Kxd7 {[%emt 0:00:30]} 20. Rhg1 {[%emt 0:11:30]} Rxg1 {[%emt 0:21:30]} 21. Rxg1 {[%emt 0:00:30]} Bf5 {[%emt 0:01:30]} 22. Rg3 {[%emt 0:04:30]} Re4 {[%emt 0:03:30]} 23. c3 {[%emt 0:00:30]} Rh4 {[%emt 0:00:30]} 24. Bd1 {[%emt 0:00:30]} Bxh3 {[%emt 0:04:30]} 25. Rxh3 1-0

[Event "1st Sivas Buruciye Open 2019"]
[Site "Sivas"]
[Date "2019.08.23"]
[Round "8"]
[White "Ozen, Sadettin Alperen"]
[Black "Babayeva, Nasrin"]
[Result "0-1"]
[ECO "B00"]
[WhiteElo "1549"]
[BlackElo "1547"]
[Annotator "NA"]
[PlyCount "66"]
[EventDate "2019.08.19"]
[EventType "swiss"]
[EventCountry "TUR"]
[SourceTitle "playchess.com"]
[Source "ChessBase"]
[SourceQuality "1"]
[TimeControl "5400+30"]

1. e4 Nc6 2. Nf3 d6 3. d4 Bg4 {[%emt 0:00:30]} 4. Bb5 {[%emt 0:06:00]} a6 {[%emt 0:00:30]} 5. Ba4 {[%emt 0:00:00]} b5 {[%emt 0:00:30]} 6. Bb3 {[%emt 0:00:00]} Nf6 {[%emt 0:02:30]} 7. Be3 {[%emt 0:01:30]} e6 {[%emt 0:00:30]} 8. Nbd2 {[%emt 0:03:30]} Be7 {[%emt 0:02:30]} 9. O-O {[%emt 0:03:30]} O-O {[%emt 0:01:30]} 10. c4 {[%emt 0:01:30]} bxc4 {[%emt 0:01:30]} 11. Bxc4 {[%emt 0:00:30]} Nxe4 {[%emt 0:00:30]} 12. Nxe4 {[%emt 0:00:30]} d5 {[%emt 0:00:30]} 13. Bd3 {[%emt 0:00:30]} dxe4 {[%emt 0:07:30]} 14. Bxe4 {[%emt 0:00:00]} Nb4 {[%emt 0:02:30]} 15. Qb1 {[%emt 0:07:00]} Bxf3 {[%emt 0:00:30]} 16. Bxf3 {[%emt 0:00:30]} Rb8 {[%emt 0:00:30]} 17. a3 {[%emt 0:01:30]} Nd5 {[%emt 0:00:00]} 18. Bd2 {[%emt 0:02:30]} Bf6 {[%emt 0:01:00]} 19. Bxd5 {[%emt 0:11:30]} Qxd5 {[%emt 0:00:00]} 20. Bb4 {[%emt 0:00:30]} Rfd8 {[%emt 0:00:00]} 21. Qc2 {[%emt 0:04:30]} Bxd4 {[%emt 0:01:30]} 22. Rad1 {[%emt 0:03:30]} Qb7 {[%emt 0:04:30]} 23. Rd3 {[%emt 0:13:30]} Rd5 {[%emt 0:01:30]} 24. Rfd1 {[%emt 0:03:30]} Rbd8 {[%emt 0:01:30]} 25. Qc4 {[%emt 0:14:30]} Qb6 {[%emt 0:03:30]} 26. Kh1 {[%emt 0:02:44]} c5 {[%emt 0:00:30]} 27. Be1 {[%emt 0:03:34]} Qb5 {[%emt 0:03:30]} 28. Qc2 {[%emt 0:02:30]} Qxb2 {[%emt 0:01:30]} 29. Qa4 {[%emt 0:00:35]} Qb5 {[%emt 0:01:30]} 30. Qc2 {[%emt 0:00:11]} c4 {[%emt 0:00:00]} 31. Rh3 {[%emt 0:00:14]} h6 {[%emt 0:02:00]} 32. Rb1 {[%emt 0:01:27]} Qc6 {[%emt 0:00:30]} 33. Ba5 {[%emt 0:00:08]} Rxa5 {[%emt 0:00:00]} 0-1

[Event "1st Sivas Buruciye Open 2019"]
[Site "Sivas"]
[Date "2019.08.24"]
[Round "9"]
[White "Gasimov, Parviz"]
[Black "Yarashov, Azat"]
[Result "0-1"]
[ECO "B53"]
[WhiteElo "2342"]
[BlackElo "2156"]
[Annotator "ChessBase"]
[PlyCount "78"]
[EventDate "2019.08.19"]
[EventType "swiss"]
[EventCountry "TUR"]
[SourceTitle "playchess.com"]
[Source "ChessBase"]
[SourceQuality "1"]
[TimeControl "5400+30"]

1. e4 {[%emt 0:00:30]} c5 {[%emt 0:01:30]} 2. Nf3 {[%emt 0:00:30]} d6 {[%emt 0:00:30]} 3. d4 {[%emt 0:01:30]} cxd4 {[%emt 0:00:30]} 4. Qxd4 {[%emt 0:00:30]} Nc6 {[%emt 0:00:30]} 5. Bb5 {[%emt 0:00:00]} Bd7 {[%emt 0:00:30]} 6. Bxc6 {[%emt 0:00:00]} Bxc6 {[%emt 0:01:30]} 7. Nc3 {[%emt 0:00:30]} Nf6 {[%emt 0:07:30]} 8. Bg5 {[%emt 0:00:00]} e6 {[%emt 0:02:30]} 9. O-O-O {[%emt 0:01:00]} Be7 {[%emt 0:00:30]} 10. Rhe1 {[%emt 0:03:30]} Qc7 {[%emt 0:04:30]} 11. Qd2 {[%emt 0:07:30]} h6 {[%emt 0:20:30]} 12. Bxf6 {[%emt 0:15:30]} gxf6 {[%emt 0:04:30]} 13. Nd4 {[%emt 0:02:30]} O-O-O {[%emt 0:02:30]} 14. Qe3 {[%emt 0:18:30]} Qa5 {[%emt 0:24:30]} 15. f4 {[%emt 0:06:30]} Kb8 {[%emt 0:06:51]} 16. Kb1 {[%emt 0:10:30]} Bd7 {[%emt 0:00:36]} 17. f5 {[%emt 0:02:30]} Rc8 {[%emt 0:01:14]} 18. Nce2 {[%emt 0:04:30]} h5 {[%emt 0:01:07]} 19. g3 {[%emt 0:01:30]} Bf8 {[%emt 0:01:26]} 20. Qd3 {[%emt 0:03:18]} Qb6 {[%emt 0:04:03]} 21. Rf1 {[%emt 0:03:40]} Be7 {[%emt 0:01:36]} 22. Nf4 {[%emt 0:01:43]} e5 {[%emt 0:06:11]} 23. Nd5 {[%emt 0:00:30]} Qd8 {[%emt 0:00:08]} 24. Nb5 {[%emt 0:05:49]} Bf8 {[%emt 0:00:51]} 25. Na3 {[%emt 0:03:18]} Rg8 {[%emt 0:00:28]} 26. Qf3 {[%emt 0:00:51]} Rh8 {[%emt 0:01:19]} 27. Qb3 {[%emt 0:01:57]} Bc6 {[%emt 0:02:29]} 28. Rf3 {[%emt 0:00:40]} h4 {[%emt 0:00:28]} 29. g4 {[%emt 0:00:17]} Bh6 {[%emt 0:00:58]} 30. Rfd3 {[%emt 0:00:42]} Bg5 {[%emt 0:00:58]} 31. Qb4 {[%emt 0:01:14]} h3 {[%emt 0:00:19]} 32. Nc4 {[%emt 0:01:15]} Bxd5 {[%emt 0:01:32]} 33. Rxd5 {[%emt 0:00:59]} Qc7 {[%emt 0:00:00]} 34. b3 {[%emt 0:00:58]} Bf4 {[%emt 0:00:16]} 35. R5d3 {[%emt 0:00:21]} Qc5 {[%emt 0:00:45]} 36. Qe1 {[%emt 0:01:48]} Bxh2 {[%emt 0:00:26]} 37. Qf1 {[%emt 0:01:32]} Bf4 {[%emt 0:00:10]} 38. Rd5 {[%emt 0:00:04]} Qc6 {[%emt 0:01:02]} 39. Rxd6 {[%emt 0:00:31]} Qxe4 {[%emt 0:00:11]} 0-1

[Event "1st Sivas Buruciye Open 2019"]
[Site "Sivas"]
[Date "2019.08.24"]
[Round "9"]
[White "Darban, Morteza"]
[Black "Babayev, Talib"]
[Result "1/2-1/2"]
[ECO "C42"]
[WhiteElo "2280"]
[BlackElo "2288"]
[Annotator "ChessBase"]
[PlyCount "22"]
[EventDate "2019.08.19"]
[EventType "swiss"]
[EventCountry "TUR"]
[SourceTitle "playchess.com"]
[Source "ChessBase"]
[SourceQuality "1"]
[TimeControl "5400+30"]

1. e4 e5 {[%emt 0:00:30]} 2. Nf3 {[%emt 0:02:00]} Nf6 {[%emt 0:00:00]} 3. Nxe5 {[%emt 0:02:30]} d6 {[%emt 0:01:00]} 4. Nf3 {[%emt 0:00:00]} Nxe4 {[%emt 0:00:00]} 5. Qe2 {[%emt 0:03:00]} Qe7 {[%emt 0:01:00]} 6. d3 {[%emt 0:02:30]} Nf6 {[%emt 0:01:30]} 7. Bg5 {[%emt 0:02:30]} Nbd7 {[%emt 0:06:30]} 8. Nc3 {[%emt 0:10:30]} Qxe2+ {[%emt 0:05:30]} 9. Bxe2 {[%emt 0:00:30]} h6 {[%emt 0:04:30]} 10. Bd2 {[%emt 0:06:30]} Nb6 {[%emt 0:04:30]} 11. Nb5 {[%emt 0:05:30]} Kd8 {[%emt 0:00:30]} 1/2-1/2

[Event "1st Sivas Buruciye Open 2019"]
[Site "Sivas"]
[Date "2019.08.24"]
[Round "9"]
[White "Gur, Tuba"]
[Black "Ciblakbas, Sertan"]
[Result "1-0"]
[ECO "D05"]
[WhiteElo "1775"]
[BlackElo "1720"]
[Annotator "NA"]
[PlyCount "49"]
[EventDate "2019.08.19"]
[EventType "swiss"]
[EventCountry "TUR"]
[SourceTitle "playchess.com"]
[Source "ChessBase"]
[SourceQuality "1"]
[TimeControl "5400+30"]

1. d4 {[%emt 0:00:30]} Nf6 {[%emt 0:13:30]} 2. Nf3 {[%emt 0:00:00]} e6 {[%emt 0:00:30]} 3. e3 {[%emt 0:00:00]} d5 {[%emt 0:00:30]} 4. Bd3 {[%emt 0:00:00]} c5 {[%emt 0:00:00]} 5. O-O {[%emt 0:01:00]} Nc6 {[%emt 0:02:00]} 6. b3 {[%emt 0:00:00]} Bd6 {[%emt 0:02:30]} 7. Bb2 {[%emt 0:00:00]} O-O {[%emt 0:00:30]} 8. a3 {[%emt 0:03:30]} b6 {[%emt 0:06:30]} 9. Ne5 {[%emt 0:00:30]} Bb7 {[%emt 0:00:30]} 10. f4 {[%emt 0:00:30]} Ne7 {[%emt 0:01:30]} 11. Nd2 {[%emt 0:04:30]} Ne4 {[%emt 0:11:30]} 12. Nxe4 {[%emt 0:06:30]} dxe4 {[%emt 0:00:30]} 13. Bc4 {[%emt 0:00:30]} Bxe5 {[%emt 0:03:30]} 14. dxe5 {[%emt 0:00:30]} Qxd1 {[%emt 0:05:30]} 15. Rfxd1 {[%emt 0:04:30]} Rad8 {[%emt 0:00:30]} 16. Kf2 {[%emt 0:03:30]} h5 {[%emt 0:07:30]} 17. Be2 {[%emt 0:06:30]} g6 {[%emt 0:00:30]} 18. b4 {[%emt 0:01:30]} Nf5 {[%emt 0:07:30]} 19. Bc3 {[%emt 0:04:30]} c4 {[%emt 0:00:30]} 20. b5 {[%emt 0:00:30]} Rxd1 {[%emt 0:07:30]} 21. Rxd1 {[%emt 0:00:30]} Bd5 {[%emt 0:00:30]} 22. Bb4 {[%emt 0:00:30]} Rc8 {[%emt 0:00:30]} 23. g4 {[%emt 0:06:30]} hxg4 {[%emt 0:01:30]} 24. Bxg4 {[%emt 0:00:00]} Ng7 {[%emt 0:07:02]} 25. Rxd5 {[%emt 0:00:00]} 1-0

[Event "1st Sivas Buruciye Open 2019"]
[Site "Sivas"]
[Date "2019.08.24"]
[Round "9"]
[White "Subasi, Fidel"]
[Black "Khvadagiani, Nika"]
[Result "0-1"]
[ECO "B23"]
[WhiteElo "1683"]
[BlackElo "1880"]
[Annotator "NA"]
[PlyCount "42"]
[EventDate "2019.08.19"]
[EventType "swiss"]
[EventCountry "TUR"]
[SourceTitle "playchess.com"]
[Source "ChessBase"]
[SourceQuality "1"]
[TimeControl "5400+30"]

1. e4 c5 2. Nc3 Nc6 3. f4 {[%emt 0:00:30]} d6 {[%emt 0:01:30]} 4. Bb5 {[%emt 0:00:30]} Bd7 {[%emt 0:00:30]} 5. Nf3 {[%emt 0:00:30]} g6 {[%emt 0:04:30]} 6. O-O {[%emt 0:03:30]} Bg7 {[%emt 0:01:30]} 7. d3 {[%emt 0:02:30]} Nd4 $14 {[%emt 0:03:30]} 8. Bc4 {[%emt 0:03:30]} b5 {[%emt 0:04:30]} 9. Bd5 {[%emt 0:02:30]} Rc8 {[%emt 0:00:30]} 10. f5 {[%emt 0:29:30]} Nf6 {[%emt 0:09:30]} 11. Be3 {[%emt 0:13:30]} b4 {[%emt 0:02:30]} 12. Bxd4 {[%emt 0:13:30]} cxd4 {[%emt 0:00:30]} 13. Ne2 {[%emt 0:01:30]} Nxd5 {[%emt 0:00:00]} 14. exd5 {[%emt 0:00:00]} Bxf5 {[%emt 0:01:00]} 15. Ng5 {[%emt 0:04:00]} O-O {[%emt 0:00:30]} 16. Ng3 {[%emt 0:06:36]} Bd7 {[%emt 0:01:30]} 17. h4 {[%emt 0:02:01]} h6 {[%emt 0:00:30]} 18. Nf3 {[%emt 0:01:08]} Qa5 {[%emt 0:00:30]} 19. h5 {[%emt 0:02:01]} Qxd5 {[%emt 0:02:30]} 20. Nh4 {[%emt 0:01:02]} Qg5 {[%emt 0:00:30]} 21. hxg6 {[%emt 0:02:27]} fxg6 {[%emt 0:00:30]} 0-1